Cogmind - Beta 13 @@@ ROGUE MODE // 2024.04.09 @ 16:57:45 Player: Not Alex Result: Destroyed by G-47 Trooper with Particle Gun Performance ------------- Evolutions (1) 500 Regions Visited (6) 1200 Robots Destroyed (29) 145 Value Destroyed (617) 617 Prototype IDs (0) 0 Alien Tech Used (0) 0 Bonus (0) 0 TOTAL SCORE: 2462 Bonus ------- None Cogmind --------- Core Integrity 0/400 Matter 300/300 Energy 100/100 System Corruption 0% Temperature Cool (9) Movement Core (250) Ox4 Location -8/Mines Parts ------- > --- POWER (1) -------- (None) > --- PROPULSION (2) --- (None) > --- UTILITY (4) ------ Medium Storage Unit Visual Processing Unit > --- WEAPON (2) ------- Spread Laser Hammer > --- INVENTORY (10) --- Small Storage Unit Medium Laser Assault Rifle Peak State ------------ > --- POWER ------------ Ion Engine > --- PROPULSION ------- Aluminum Leg Aluminum Leg > --- UTILITY ---------- Heat Sink Small Storage Unit Visual Processing Unit Hardened Light Armor Plating > --- WEAPON ----------- Particle Gun Hammer > --- INVENTORY -------- Ion Engine Compact Wheel Medium Laser Assault Rifle [Rating: 12] Favorites ----------- Power Ion Engine Engine Ion Engine Propulsion Aluminum Leg Leg Aluminum Leg Wheel Compact Wheel Utility Small Storage Unit Device Improved Terrain Scanner Storage Small Storage Unit Processor Visual Processing Unit Protection Hardened Light Armor Plating Weapon Hammer Energy Gun Medium Laser Ballistic Gun Assault Rifle Launcher Grenade Launcher Impact Weapon Hammer Build | -11 -10 -10 -9 -9 -9 -8 ------- Run | Yrd Mat Min Mat Min Exi Min Slots Evolved 2 | . . . 2 . . . Power . | . . . . . . . Propulsion . | . . . . . . . Utility 2 | . . . 2 . . . Weapon . | . . . . . . . Parts Attached 28 | 7 7 . 11 1 . 2 Power 7 | 1 1 . 2 1 . 2 Engine 7 | 1 1 . 2 1 . 2 Core . | . . . . . . . Reactor . | . . . . . . . Propulsion 7 | 2 3 . 2 . . . Treads . | . . . . . . . Leg 3 | . 3 . . . . . Wheel 4 | 2 . . 2 . . . Hover . | . . . . . . . Flight . | . . . . . . . Utility 7 | 2 . . 5 . . . Device 2 | 1 . . 1 . . . Storage 2 | 1 . . 1 . . . Processor 1 | . . . 1 . . . Hackware . | . . . . . . . Protection 2 | . . . 2 . . . Artifact . | . . . . . . . Weapon 7 | 2 3 . 2 . . . Energy Gun 4 | 1 1 . 2 . . . Energy Cannon . | . . . . . . . Ballistic Gun 1 | 1 . . . . . . Ballistic Cannon . | . . . . . . . Launcher 1 | . 1 . . . . . Special Weapon . | . . . . . . . Impact Weapon 1 | . 1 . . . . . Slashing Weapon . | . . . . . . . Piercing Weapon . | . . . . . . . Special Melee Weapon . | . . . . . . . Unidentified Prototypes . | . . . . . . . Parts Lost 14 | . 2 1 5 2 . 4 Power 4 | . . . 1 . . 3 Propulsion 5 | . 1 . 2 1 . 1 Utility 3 | . . 1 1 1 . . Weapon 2 | . 1 . 1 . . . Highest Loss Streak 5 | . 2 1 5 2 . 2 To Critical Strikes . | . . . . . . . Average Slot Usage (%) 83 | . 98 85 86 69 66 59 Engine 11 | . 14 14 10 11 11 5 Leg 13 | . 18 28 15 . . . Wheel 6 | . 8 . 3 12 11 10 Device 6 | . 14 . 8 . . . Storage 12 | . 14 14 11 11 11 11 Processor 5 | . . . 8 11 11 11 Protection 2 | . . . 7 . . . Energy Gun 11 | . 12 14 10 11 11 11 Ballistic Gun 1 | . 4 . . . . . Impact Weapon 10 | . 7 14 11 11 11 11 Naked Turns . | . . . . . . . Heaviest Build 28 | 15 16 14 28 20 18 20 Greatest Support 26 | 26 26 20 26 16 16 16 Greatest Overweight (x) 4 | . . . 4 1 1 4 Average Overweight (x) . | . . . . 1 1 . Largest Inventory Capacity 10 | 8 8 8 10 10 10 10 Average Capacity 8 | 7 8 8 9 10 10 10 Most Carried 6 | 4 3 3 6 4 4 4 Average Carried 3 | . 1 3 4 4 4 3 Final Capacity 10 | 8 8 8 10 10 10 10 Final Carried 4 | . 3 3 4 4 4 3 Class Distribution -------------------- 67% | Mutant 32% | Scavenger-Mutant Dominant Class ---------------- Scavenger-Mutant | -10/Materials Mutant | -10/Mines Mutant | -9/Materials Mutant | -9/Mines Mutant | -9/Exiles Mutant | -8/Mines Resources | -11 -10 -10 -9 -9 -9 -8 ----------- Run | Yrd Mat Min Mat Min Exi Min Matter Collected 507 | 179 243 . 75 . . 10 Remotely . | . . . . . . . Salvage Created 727 | 10 355 42 259 35 . 26 Parts 42 | 4 16 2 14 . . 6 Haulers Intercepted . | . . . . . . . Recyclers Shooed 1 | 1 . . . . . . Parts Field Recycled . | . . . . . . . Retrieved Matter . | . . . . . . . Parts Self-Destructed . | . . . . . . . Prevented . | . . . . . . . Kills | -11 -10 -10 -9 -9 -9 -8 ------- Run | Yrd Mat Min Mat Min Exi Min Combat Hostiles Destroyed 21 | . 5 3 7 2 . 4 Melee 2 | . . 2 . . . . Guns 14 | . 4 . 4 2 . 4 AOE 1 | . 1 . . . . . Classes Destroyed 9 | 1 4 1 2 1 . . Worker 1 | . 1 . . . . . Builder 4 | . 3 . 1 . . . Tunneler 1 | 1 . . . . . . Recycler 1 | . 1 . . . . . Watcher 1 | . . . 1 . . . Swarmer 10 | . . 3 3 . . 4 Grunt 9 | . 5 . 3 1 . . Duelist 1 | . . . . 1 . . Sentry 1 | . . . 1 . . . Best Kill Streak 8 | 1 8 2 6 2 . 4 Combat Bots Only 5 | . 4 2 5 2 . 4 Max Kills in Single Turn 2 | 1 2 1 1 1 . 2 Gunslinging . | . . . . . . . Exploded 1 | . 1 . . . . . Melee 1 | . . 1 . . . . Uniques/NPCs Destroyed . | . . . . . . . Combat | -11 -10 -10 -9 -9 -9 -8 -------- Run | Yrd Mat Min Mat Min Exi Min Hostile Shots Fired 216 | . 48 16 80 16 . 56 Missed 60 | . 14 2 19 5 . 20 Damage Taken 1910 | . 452 117 727 205 . 409 Core 491 | . 55 27 184 83 . 142 Absorbed by Shields . | . . . . . . . Core Remaining (%) 83 | 100 . 67 . . . . Volleys Fired 93 | 4 42 . 28 13 . 6 Largest 2 | 2 2 . 1 1 . 1 Hottest 65 | 60 60 . 65 65 . 65 Shots Fired 107 | 8 52 . 28 13 . 6 Gun 105 | 8 50 . 28 13 . 6 Cannon . | . . . . . . . Launcher 2 | . 2 . . . . . Special . | . . . . . . . Kinetic 24 | 4 20 . . . . . Thermal 69 | . 22 . 28 13 . 6 Explosive 2 | . 2 . . . . . Electromagnetic 12 | 4 8 . . . . . Robot Hit Streak 9 | 3 5 . 8 9 . 7 Robot Miss Streak 7 | 1 6 . 7 3 . 3 Penetration Max . | . . . . . . . Secondary Targets . | . . . . . . . Shots Hit Robots 89 | 5 26 9 30 13 . 6 Core Hits 48 | 2 15 1 9 10 . 11 Critical Kills 1 | . . 1 . . . . Critical Parts Destroyed 5 | . . 1 4 . . . Critical Strikes 9 | . 1 2 6 . . . Burn 3 | . 1 . 2 . . . Smash 6 | . . 2 4 . . . Melee Attacks 23 | . . 11 12 . . . Impact 23 | . . 11 12 . . . Slashing . | . . . . . . . Piercing . | . . . . . . . Sneak Attacks 1 | . . 1 . . . . Combat Hostiles 1 | . . 1 . . . . Follow-up Attacks . | . . . . . . . Damage Inflicted 1915 | 60 719 269 576 194 . 97 Guns 1003 | 60 323 . 329 194 . 97 Cannons . | . . . . . . . Explosions 396 | . 396 . . . . . Melee 516 | . . 269 247 . . . Ramming . | . . . . . . . Kinetic 198 | 34 164 . . . . . Thermal 1011 | . 391 . 329 194 . 97 Explosive 105 | . 105 . . . . . Electromagnetic 85 | 26 59 . . . . . Impact 516 | . . 269 247 . . . Slashing . | . . . . . . . Piercing . | . . . . . . . Highest Corruption . | . . . . . . . Average Corruption . | . . . . . . . Corruption Purged . | . . . . . . . Corruption Blocked . | . . . . . . . Overload Shots . | . . . . . . . Overflow Damage 304 | . 97 93 114 . . . Projectiles . | . . . . . . . Explosions 97 | . 97 . . . . . Melee 207 | . . 93 114 . . . Knockbacks 3 | . . . 3 . . . Impact 3 | . . . 3 . . . Kinetic . | . . . . . . . Secondary . | . . . . . . . Self-Inflicted Damage 32 | . 32 . . . . . Shots 2 | . 2 . . . . . Rammed . | . . . . . . . Targets Rammed . | . . . . . . . Kicked . | . . . . . . . Crushed . | . . . . . . . Highest Temperature 270 | . 158 . 270 238 . 48 Average Temperature 80 | . 54 . 106 109 . 25 Received Heat Transfer 810 | . 237 . 360 42 . 171 Effects 1 | . . . . 1 . . Energy Bleed 1 | . . . . 1 . . Siege Activations . | . . . . . . . Robots Corrupted . | . . . . . . . Combat Hostiles . | . . . . . . . Parts Fried 5 | . . 1 4 . . . Impact Corruptions 10 | . . 5 5 . . . Robots Melted . | . . . . . . . Combat Hostiles . | . . . . . . . Parts Melted 6 | . 2 . 4 . . . Heat Transferred 1820 | . 520 . 925 250 . 125 Parts Sabotaged . | . . . . . . . Parts Stolen . | . . . . . . . Parts Stripped . | . . . . . . . Power Chain Reactions . | . . . . . . . Alert | -11 -10 -10 -9 -9 -9 -8 ------- Run | Yrd Mat Min Mat Min Exi Min Peak Influence 254 | 5 254 81 179 53 . 135 Initial 31 | . 3 21 31 23 . . Average 95 | 2 168 78 75 48 . 78 Maximum Alert Level 1 | . 1 . . . . . Low Security (%) 81 | 100 32 100 100 100 . 100 Level 1 18 | . 67 . . . . . Level 2 . | . . . . . . . Level 3 . | . . . . . . . Level 4 . | . . . . . . . Level 5 . | . . . . . . . High Security . | . . . . . . . Max Security . | . . . . . . . Squads Dispatched 2 | . . . 2 . . . Investigation . | . . . . . . . Extermination . | . . . . . . . Reinforcement 2 | . . . 2 . . . Assault . | . . . . . . . Garrison . | . . . . . . . Intercept . | . . . . . . . Searches Triggered . | . . . . . . . Construction Impeded . | . . . . . . . Haulers Reinforced . | . . . . . . . Active Scanning Responses . | . . . . . . . Cargo Convoy Interrupts . | . . . . . . . Stealth | -11 -10 -10 -9 -9 -9 -8 --------- Run | Yrd Mat Min Mat Min Exi Min Distress Signals 3 | . 2 . 1 . . . Communications Jammed . | . . . . . . . Distress Signals . | . . . . . . . Times Spotted 40 | . 11 2 14 2 . 11 Peak Tracking Total 8 | . 4 2 4 2 . 8 Tactical Retreats 3 | . . . 2 . . 1 Traps | -11 -10 -10 -9 -9 -9 -8 ------- Run | Yrd Mat Min Mat Min Exi Min Traps Triggered . | . . . . . . . Indirectly . | . . . . . . . Trap Hack Attempts . | . . . . . . . Triggered . | . . . . . . . Disarmed . | . . . . . . . Reprogrammed . | . . . . . . . Reused . | . . . . . . . Traps Extracted . | . . . . . . . Installed . | . . . . . . . Triggered . | . . . . . . . Machines | -11 -10 -10 -9 -9 -9 -8 ---------- Run | Yrd Mat Min Mat Min Exi Min Machines Disabled 3 | . 3 . . . . . Max in Single Turn 3 | . 3 . . . . . Machines Repaired . | . . . . . . . Machines Dismantled . | . . . . . . . Machines Sabotaged . | . . . . . . . Overloaded Fab Kills . | . . . . . . . Hacking | -11 -10 -10 -9 -9 -9 -8 --------- Run | Yrd Mat Min Mat Min Exi Min Machines Accessed 3 | . 3 . . . . . Terminals 3 | . 3 . . . . . Fabricators . | . . . . . . . Repair Stations . | . . . . . . . Recycling Units . | . . . . . . . Scanalyzers . | . . . . . . . Garrison Access . | . . . . . . . Total Hacks 4 | . 4 . . . . . Successful 3 | . 3 . . . . . Failed 1 | . 1 . . . . . Catastrophic . | . . . . . . . Database Lockouts . | . . . . . . . Manual . | . . . . . . . Terminals 4 | . 4 . . . . . Fabricators . | . . . . . . . Repair Stations . | . . . . . . . Recycling Units . | . . . . . . . Scanalyzers . | . . . . . . . Garrison Access . | . . . . . . . Terminal Hacks 3 | . 3 . . . . . Record 3 | . 3 . . . . . Fabricator Hacks . | . . . . . . . Repair Station Hacks . | . . . . . . . Recycling Unit Hacks . | . . . . . . . Scanalyzer . | . . . . . . . Garrison Access Hacks . | . . . . . . . Unauthorized Hacks . | . . . . . . . Terminals . | . . . . . . . Fabricators . | . . . . . . . Repair Stations . | . . . . . . . Recycling Units . | . . . . . . . Scanalyzers . | . . . . . . . Garrison Access . | . . . . . . . Data Cores Recovered . | . . . . . . . Used . | . . . . . . . Hacking Detections 2 | . 2 . . . . . Full Trace Events . | . . . . . . . Feedback Events . | . . . . . . . Feedback Blocked . | . . . . . . . Robot Schematics Acquired . | . . . . . . . Robots Built . | . . . . . . . Authchips . | . . . . . . . Time . | . . . . . . . Total Robot Build Rating . | . . . . . . . Part Schematics Acquired . | . . . . . . . Parts Built . | . . . . . . . Authchips . | . . . . . . . Time . | . . . . . . . Total Part Build Rating . | . . . . . . . Parts Repaired . | . . . . . . . Time . | . . . . . . . Parts Recycled . | . . . . . . . Recycled Matter . | . . . . . . . Retrieved Matter . | . . . . . . . Retrieved Components . | . . . . . . . Parts Scanalyzed . | . . . . . . . Part Schematics Acquired . | . . . . . . . Parts Damaged . | . . . . . . . Bothacking | -11 -10 -10 -9 -9 -9 -8 ------------ Run | Yrd Mat Min Mat Min Exi Min Used RIF Installer . | . . . . . . . Robots Hacked . | . . . . . . . Non-combat . | . . . . . . . Combat . | . . . . . . . Robot Hacks Applied . | . . . . . . . Relay Couplers Released . | . . . . . . . Fabnet Peak Effective % . | . . . . . . . Robots Rewired . | . . . . . . . Allies Hacked . | . . . . . . . Hacks Repelled . | . . . . . . . Allies | -11 -10 -10 -9 -9 -9 -8 -------- Run | Yrd Mat Min Mat Min Exi Min Total Allies . | . . . . . . . Largest Group . | . . . . . . . Highest-Rated Group . | . . . . . . . Highest-Rated Ally . | . . . . . . . Total Orders . | . . . . . . . Ally Attacks . | . . . . . . . Total Damage . | . . . . . . . Kills . | . . . . . . . Allies Corrupted . | . . . . . . . Allies Melted . | . . . . . . . Intel | -11 -10 -10 -9 -9 -9 -8 ------- Run | Yrd Mat Min Mat Min Exi Min Robot Analysis Total . | . . . . . . . Derelict Logs Recovered 1 | . . 1 . . . . Drone Launches . | . . . . . . . Drone Recoveries . | . . . . . . . Exploration | -11 -10 -10 -9 -9 -9 -8 ------------- Run | Yrd Mat Min Mat Min Exi Min Turns Passed 1559 | 72 409 202 478 142 35 221 Spaces Moved 975 | 54 234 131 257 100 31 168 Core 16 | 5 . . 3 . . 8 Treads . | . . . . . . . Legs 453 | . 147 131 175 . . . Wheels 506 | 49 87 . 79 100 31 160 Hover . | . . . . . . . Flight . | . . . . . . . Fastest Speed 50 | 50 90 120 90 115 115 100 Average Speed 120 | 86 109 120 143 115 115 115 Slowest Speed 260 | 90 120 120 260 115 115 250 Overloaded Moves . | . . . . . . . Propulsion Burnouts . | . . . . . . . Robots Hopped . | . . . . . . . Cave-ins Triggered . | . . . . . . . Exploration Rate (%) 23 | 3 46 31 21 21 8 36 Regions Visited 6 Branch Regions 4 Pre-discovered Areas 1 | . . 1 . . . . Known Exits Taken . | . . . . . . . Unknown Exits Taken 6 | 1 1 1 1 1 1 . Scrap Searched . | . . . . . . . Spaces Dug . | . . . . . . . Terrain Destroyed 46 | . 46 . . . . . Melee . | . . . . . . . Projectile . | . . . . . . . AOE 46 | . 46 . . . . . Terrain Rammed . | . . . . . . . Walls Destroyed . | . . . . . . . Machines Disabled . | . . . . . . . Actions | -11 -10 -10 -9 -9 -9 -8 --------- Run | Yrd Mat Min Mat Min Exi Min Total 1213 | 71 336 156 317 113 30 190 Wait 71 | . 43 15 . . . 13 Move 969 | 53 233 130 256 99 30 168 Hop . | . . . . . . . Pick Up 25 | 7 8 . 9 . . 1 Fast Attach . | . . . . . . . Attach 22 | 7 4 . 9 . . 2 Detach 1 | . . . 1 . . . Swap 6 | . 3 . 2 1 . . Drop 3 | . 3 . . . . . Fire 93 | 4 42 . 28 13 . 6 Melee 23 | . . 11 12 . . . Ram . | . . . . . . . Kick . | . . . . . . . Crush . | . . . . . . . Escape Stasis . | . . . . . . . Rewire . | . . . . . . . Trap . | . . . . . . . Miscellaneous . | . . . . . . . Route ------- -11/Scrapyard -10/Materials -10/Mines -9/Materials -9/Mines -9/Exiles -8/Mines History --------- Turn | Location | Event 10 | -11/Scrapyard | Discovered new exit (range 14) 73 | -11/Scrapyard | Entered Materials 415 | -10/Materials | Discovered new exit (range 8) 482 | -10/Materials | Entered Mines 499 | -10/Mines | Met a Derelict bent on vengeance 625 | -10/Mines | Discovered new exit (range 5) 684 | -10/Mines | Entered Materials 684 | -9/Materials | Evolved 2 slots: Utility x2 783 | -9/Materials | Build established: Mutant 1083 | -9/Materials | Lost 5 parts (1p2n1u1w) 1145 | -9/Materials | Discovered new exit (range 16) 1162 | -9/Materials | Entered Mines 1176 | -9/Mines | Core integrity fell below 50% 1299 | -9/Mines | Deemed a non-threat by the Exiles lab entrance 1299 | -9/Mines | Discovered new exit (range 5) 1304 | -9/Mines | Entered Exiles 1321 | -9/Exiles | Discovered new exit (range 17) 1339 | -9/Exiles | Entered Mines 1519 | -8/Mines | Core integrity fell below 20% 1560 | -8/Mines | Destroyed by G-47 Trooper with Particle Gun Last Messages --------------- R-06 Scavenger collects Lgt. Assault Rifle. R-06 Scavenger collects Flight Unit. T-07 Excavator is excavating. U-05 Engineer lays Concrete. U-05 Engineer builds a Wall. U-05 Engineer lays Concrete. T-07 Excavator is excavating. U-05 Engineer lays Concrete. T-07 Excavator is excavating. U-05 Engineer lays Concrete. T-07 Excavator is excavating. U-05 Engineer lays Concrete. T-07 Excavator is excavating. U-05 Engineer lays Concrete. T-07 Excavator is excavating. U-05 Engineer lays Concrete. Com. Wheel destroyed. Lgt. Ion Engine destroyed. U-05 Engineer lays Concrete. Critical hit (Burn: +37). Map ----- +----------------------------------------------------+ | | | | | | | | | ?????????????????????????????????????????????????? | | ?????????????????????????????????????????????????? | | ?????????????????????????????????????????????????? | | ?????????????????????????????????????????????????? | | ?????????????????????????????????????????????????? | | ?????????????????????????????????????????????????? | | ?????????????????????????????????????????????????? | | ?????????????????????????????????????????????????? | | ?????????????????????????????????????????????????? | | ?????????????????????????????????????????????????? | | ?????????????????????????????????????????????????? | | ?????????????????????????????????????????????????? | | ?????????????????????????????????????????????????? | | ?????????????????????????????????????????????????? | | ????????????###??????????????????????????????????? | | ???????????## ####??????????????????????????????? | | ???????????# #??????????????????????????????? | | ???????????# #??????????????????????????????? | | ???????????# #??????????????????????????????? | | ???????????## #??????????????????????????????? | | ????????????### u################ #??????????????? | | ??????????????# g @ r #??????????????? | | ?????????????## ##################??????????????? | | ????????????## ####????????????????????????????? | | ???????????## ##???????????????????????????? | | ??????????## #####???????????????????????? | | ???????#### #???????????????????????? | | ???????# #### #???????????????????????? | | ???????# ##??# #???????????????????????? | | ???????# ### ###### #???????????????????????? | | ???????# #?#######?# #?????????????????####### | | ???????# #?????????# ## #?????????????????# | | ???????# #?????????# ## #?????????????????# ### # | | #####??# #?????????# ## #?????????????????# #?# # | | ?# #?????????# ## ####??????????????# #?# # | | """?# #?????????# ## #??????????????# #?# # | | """ # #?????????# ##### #??????????????# #?# # | | """ # #?????????# #???# #?????????###### #?# # | | #?????????# #???# #?????????# #?# # | | """ #?????????# #???# #?????????# #### ### # | | """ ####?????????? ????#=#?????#???# #### | | """ ?????????????? ????# #### #??## ## | | ?????????????? ????#%##[ #??## ##### | | #######?????????????? ????# % % #### #???# | | ????????????????????? ????#### ### #???# | | ????????????????????? ???????# ## ##???? | +----------------------------------------------------+ Best States ------------- Heat Dissipation 38 Energy Generation 10 Energy Capacity 250 Matter Stores 300 Matter Capacity 300 Sight Range 18 Terrain Scan Range 16 Terrain Scan Density 10 Armor Coverage 225 Evasion (%) 55 Item Schematics ----------------- None Robot Schematics ------------------ None Fabricated ------------ Nothing Alien Tech Used ----------------- None Achievements -------------- None Challenges ------------ None Game ------ Seed PhasingPiercingCalibrator Manual? 0 Play Time 00:14:00 Cumulative 6.2 hours Start 2024.04.09 @ 16:44:16 End 2024.04.09 @ 16:57:45 Sessions 1 Manual Loads 0 Difficulty Rogue Special Mode None Game No. 16 Rogue 5 Adventurer 11 Explorer 0 Win Type - Total 0 Types 0/0/0/0/0/0/0/0/0 Lore% 1 Gallery% 20 Achievement% 13 Wizard Run 0 Options --------- Layout 1 ASCII 0 Keyboard 0 Movement Mouse Keybinds 0 Fullscreen 1 Font 32/Smallcaps Map View 50x35 Zoom Use 0% Tactical HUD 0 Map Filters NONE Filters NONE Steam 1 RUN: 92066c06-5d13-45f3-a779-9ed31d303fdc